[Event "*** Qualifier 1: Titled Tuesday 3|2 Blitz"]
[Site "Chess.com"]
[Date "2017.04.04"]
[Round "7"]
[White "Usurpov"]
[Black "jposthuma"]
[Result "1-0"]
[WhiteElo "2287"]
[BlackElo "2230"]
[TimeControl "180+2"]
[EndTime "14:39:46 PDT"]
[Termination "Usurpov won by resignation"]

1. e4 {[%clk 0:03:02]} 1... c6 {[%clk 0:03:00.6]} 2. d4 {[%clk 0:03:02.2]} 2...
d5 {[%clk 0:02:58.8]} 3. Nc3 {[%clk 0:03:03.3]} 3... dxe4 {[%clk 0:02:59.9]} 4.
Nxe4 {[%clk 0:03:05.2]} 4... Nf6 {[%clk 0:03:00.8]} 5. Nxf6+ {[%clk 0:03:05.9]}
5... gxf6 {[%clk 0:03:02.7]} 6. c3 {[%clk 0:03:02.5]} 6... Qd5 {[%clk
0:03:03.3]} 7. Nf3 {[%clk 0:02:53.1]} 7... Rg8 {[%clk 0:03:01.7]} 8. g3 {[%clk
0:02:50.8]} 8... Bg4 {[%clk 0:03:02.5]} 9. Bg2 {[%clk 0:02:51.6]} 9... Nd7
{[%clk 0:03:03.8]} 10. h3 {[%clk 0:02:51.6]} 10... Bh5 {[%clk 0:03:04.5]} 11.
Be3 {[%clk 0:02:47.5]} 11... O-O-O {[%clk 0:03:02.5]} 12. g4 {[%clk 0:02:39.7]}
12... Qb5 {[%clk 0:02:49.3]} 13. Qe2 {[%clk 0:02:09.6]} 13... Qxe2+ {[%clk
0:02:47.8]} 14. Kxe2 {[%clk 0:02:11.5]} 14... f5 {[%clk 0:02:44.5]} 15. gxh5
{[%clk 0:02:09.7]} 15... Rxg2 {[%clk 0:02:44.1]} 16. Rag1 {[%clk 0:02:11]} 16...
Rxg1 {[%clk 0:02:42]} 17. Rxg1 {[%clk 0:02:12.9]} 17... f6 {[%clk 0:02:06.6]}
18. Rg8 {[%clk 0:01:51.1]} 18... e6 {[%clk 0:01:48.6]} 19. Rh8 {[%clk 0:01:47]}
19... Nb6 {[%clk 0:01:16.8]} 20. Rxh7 {[%clk 0:01:23.6]} 20... Na4 {[%clk
0:01:16.7]} 21. Rf7 {[%clk 0:00:57.8]} 21... Nxb2 {[%clk 0:01:05.8]} 22. h6
{[%clk 0:00:56.5]} 22... Nc4 {[%clk 0:00:18.1]} 23. h7 {[%clk 0:00:53.9]} 23...
Nd6 {[%clk 0:00:11.5]} 24. h8=Q {[%clk 0:00:46.6]} 24... Nxf7 {[%clk 0:00:12.9]}
25. Qxf6 {[%clk 0:00:47.3]} 25... Nd6 {[%clk 0:00:09.1]} 26. Qxe6+ {[%clk
0:00:47.2]} 26... Kc7 {[%clk 0:00:10.3]} 27. Ne5 {[%clk 0:00:46.3]} 27... Re8
{[%clk 0:00:06.8]} 28. Qf6 {[%clk 0:00:30.4]} 28... Be7 {[%clk 0:00:05.1]} 29.
Qg6 {[%clk 0:00:30.5]} 29... b5 {[%clk 0:00:03.1]} 30. Bf4 {[%clk 0:00:30.5]}
30... Kb6 {[%clk 0:00:03.5]} 31. Nd7+ {[%clk 0:00:20.3]} 31... Kc7 {[%clk
0:00:03.4]} 32. Qxe8 {[%clk 0:00:19.2]} 1-0

[Event "*** Qualifier 1: Titled Tuesday 3|2 Blitz"]
[Site "Chess.com"]
[Date "2017.04.04"]
[Round "7"]
[White "Tirantes"]
[Black "GameOverBro"]
[Result "1/2-1/2"]
[WhiteElo "2207"]
[BlackElo "2248"]
[TimeControl "180+2"]
[EndTime "14:39:52 PDT"]
[Termination "Game drawn by repetition"]

1. c4 {[%clk 0:03:02]} 1... Nf6 {[%clk 0:02:59.1]} 2. g3 {[%clk 0:03:02.6]} 2...
d6 {[%clk 0:02:56.4]} 3. Bg2 {[%clk 0:03:00.8]} 3... Nbd7 {[%clk 0:02:56.2]} 4.
Nc3 {[%clk 0:02:59.1]} 4... e5 {[%clk 0:02:56.8]} 5. e4 {[%clk 0:02:59.6]} 5...
Be7 {[%clk 0:02:46.5]} 6. Nge2 {[%clk 0:03:00.1]} 6... O-O {[%clk 0:02:47.1]} 7.
O-O {[%clk 0:03:00.3]} 7... c6 {[%clk 0:02:45]} 8. d3 {[%clk 0:03:00]} 8... a6
{[%clk 0:02:42.8]} 9. h3 {[%clk 0:02:57.6]} 9... b5 {[%clk 0:02:42.7]} 10. Be3
{[%clk 0:02:57.1]} 10... b4 {[%clk 0:02:41.2]} 11. Na4 {[%clk 0:02:54.2]} 11...
d5 {[%clk 0:02:41.2]} 12. cxd5 {[%clk 0:02:49.5]} 12... cxd5 {[%clk 0:02:42.2]}
13. exd5 {[%clk 0:02:49.3]} 13... Rb8 {[%clk 0:02:19.4]} 14. a3 {[%clk
0:02:36.6]} 14... Bb7 {[%clk 0:02:15]} 15. axb4 {[%clk 0:02:22.4]} 15... Nxd5
{[%clk 0:02:07.8]} 16. Ba7 {[%clk 0:02:14.4]} 16... Ra8 {[%clk 0:02:02.3]} 17.
Bc5 {[%clk 0:02:13.2]} 17... Rb8 {[%clk 0:01:56.3]} 18. Qd2 {[%clk 0:01:57.4]}
18... Nxb4 {[%clk 0:01:43]} 19. Bxb7 {[%clk 0:01:09.7]} 19... Rxb7 {[%clk
0:01:24.1]} 20. Bxe7 {[%clk 0:01:02.6]} 20... Qxe7 {[%clk 0:01:26]} 21. d4
{[%clk 0:00:58]} 21... Rd8 {[%clk 0:01:19]} 22. Rfe1 {[%clk 0:00:54.8]} 22...
Qf6 {[%clk 0:01:18.3]} 23. Rad1 {[%clk 0:00:48.8]} 23... Qc6 {[%clk 0:01:07.2]}
24. Nac3 {[%clk 0:00:44.5]} 24... Nf6 {[%clk 0:01:06.7]} 25. Qc1 {[%clk
0:00:37.2]} 25... e4 {[%clk 0:01:03.3]} 26. Nf4 {[%clk 0:00:36]} 26... Qc4
{[%clk 0:00:57.4]} 27. d5 {[%clk 0:00:33.8]} 27... Nd3 {[%clk 0:00:54.3]} 28.
Nxd3 {[%clk 0:00:33.6]} 28... exd3 {[%clk 0:00:56.2]} 29. Qe3 {[%clk 0:00:32]}
29... Rxb2 {[%clk 0:00:50.8]} 30. Qxd3 {[%clk 0:00:30.5]} 30... Qc8 {[%clk
0:00:48.6]} 31. Kg2 {[%clk 0:00:26.9]} 31... Rb3 {[%clk 0:00:49.8]} 32. Rc1
{[%clk 0:00:25.5]} 32... Qa8 {[%clk 0:00:45.7]} 33. Kh2 {[%clk 0:00:22.7]} 33...
h5 {[%clk 0:00:42.2]} 34. Qd4 {[%clk 0:00:23]} 34... a5 {[%clk 0:00:41.4]} 35.
d6 {[%clk 0:00:22.9]} 35... a4 {[%clk 0:00:42.4]} 36. Qxa4 {[%clk 0:00:20.9]}
36... Qf3 {[%clk 0:00:41]} 37. Qxb3 {[%clk 0:00:19.2]} 37... Qxf2+ {[%clk
0:00:41]} 38. Kh1 {[%clk 0:00:20.3]} 38... Qf3+ {[%clk 0:00:40.4]} 39. Kh2
{[%clk 0:00:21.4]} 39... Qf2+ {[%clk 0:00:39.4]} 40. Kh1 {[%clk 0:00:22.5]}
40... Qf3+ {[%clk 0:00:40.8]} 41. Kh2 {[%clk 0:00:23.5]} 41... Qf2+ {[%clk
0:00:30.5]} 42. Kh1 {[%clk 0:00:24.5]} 42... Qf3+ {[%clk 0:00:30.6]} 1/2-1/2

[Event "*** Qualifier 1: Titled Tuesday 3|2 Blitz"]
[Site "Chess.com"]
[Date "2017.04.04"]
[Round "7"]
[White "DryCounty"]
[Black "pKiLz5Rn9b"]
[Result "0-1"]
[WhiteElo "2467"]
[BlackElo "2604"]
[TimeControl "180+2"]
[EndTime "14:40:03 PDT"]
[Termination "pKiLz5Rn9b won by resignation"]

1. Nf3 {[%clk 0:03:02]} 1... Nf6 {[%clk 0:03:00.8]} 2. c4 {[%clk 0:03:02]} 2...
e6 {[%clk 0:03:01.3]} 3. g3 {[%clk 0:03:02.3]} 3... b6 {[%clk 0:02:58.3]} 4. Bg2
{[%clk 0:03:02.6]} 4... Bb7 {[%clk 0:03:00.2]} 5. O-O {[%clk 0:03:03.5]} 5... c5
{[%clk 0:03:01.1]} 6. b3 {[%clk 0:03:03.1]} 6... d5 {[%clk 0:03:01.1]} 7. e3
{[%clk 0:02:59.9]} 7... Be7 {[%clk 0:03:02]} 8. Bb2 {[%clk 0:03:00.7]} 8... O-O
{[%clk 0:03:03.3]} 9. Nc3 {[%clk 0:03:00.5]} 9... Nc6 {[%clk 0:03:04.7]} 10.
cxd5 {[%clk 0:03:01.1]} 10... Nxd5 {[%clk 0:03:04.7]} 11. Nxd5 {[%clk
0:03:01.2]} 11... exd5 {[%clk 0:03:06.2]} 12. d4 {[%clk 0:03:01.8]} 12... Bf6
{[%clk 0:03:07.7]} 13. Qd2 {[%clk 0:03:01.8]} 13... Rc8 {[%clk 0:03:01.4]} 14.
Rac1 {[%clk 0:02:58.1]} 14... c4 {[%clk 0:02:53.7]} 15. bxc4 {[%clk 0:02:55.3]}
15... dxc4 {[%clk 0:02:54.9]} 16. Rfd1 {[%clk 0:02:41.5]} 16... Ne7 {[%clk
0:02:32]} 17. Ba3 {[%clk 0:02:31.5]} 17... Re8 {[%clk 0:02:29.9]} 18. Qe2 {[%clk
0:02:25]} 18... b5 {[%clk 0:02:29.5]} 19. e4 {[%clk 0:02:24.2]} 19... g6 {[%clk
0:02:21.8]} 20. e5 {[%clk 0:02:19.4]} 20... Bg7 {[%clk 0:02:23]} 21. e6 {[%clk
0:02:08.1]} 21... Bd5 {[%clk 0:01:41.2]} 22. exf7+ {[%clk 0:02:05.3]} 22... Bxf7
{[%clk 0:01:41.5]} 23. Ne5 {[%clk 0:01:58.1]} 23... Bd5 {[%clk 0:01:39.3]} 24.
Bxe7 {[%clk 0:01:37]} 24... Rxe7 {[%clk 0:01:40.2]} 25. a4 {[%clk 0:01:30.6]}
25... a6 {[%clk 0:01:39.1]} 26. axb5 {[%clk 0:01:31.4]} 26... axb5 {[%clk
0:01:40.4]} 27. Qg4 {[%clk 0:01:20.7]} 27... Bxg2 {[%clk 0:01:37.8]} 28. Kxg2
{[%clk 0:01:21.5]} 28... Qd5+ {[%clk 0:01:39.1]} 29. Kg1 {[%clk 0:01:21.8]}
29... Rd8 {[%clk 0:01:39.1]} 30. h4 {[%clk 0:01:14.2]} 30... c3 {[%clk 0:01:26]}
31. h5 {[%clk 0:00:59.1]} 31... gxh5 {[%clk 0:01:26.8]} 32. Qxh5 {[%clk
0:00:55.6]} 32... b4 {[%clk 0:01:27.9]} 33. Qh4 {[%clk 0:00:40.8]} 33... Ree8
{[%clk 0:01:26.5]} 34. Ng4 {[%clk 0:00:39.6]} 34... Qf5 {[%clk 0:01:18.8]} 35.
Re1 {[%clk 0:00:25.4]} 35... Rxe1+ {[%clk 0:00:48.4]} 36. Rxe1 {[%clk
0:00:27.3]} 36... Rc8 {[%clk 0:00:46.1]} 37. Re7 {[%clk 0:00:16.3]} 37... c2
{[%clk 0:00:39.2]} 38. Rxg7+ {[%clk 0:00:14.7]} 38... Kxg7 {[%clk 0:00:39.5]}
39. Qe7+ {[%clk 0:00:16.1]} 39... Kh8 {[%clk 0:00:35.9]} 40. Nf6 {[%clk
0:00:15]} 40... c1=Q+ {[%clk 0:00:34.9]} 41. Kg2 {[%clk 0:00:15.7]} 41... Qc6+
{[%clk 0:00:33.8]} 42. d5 {[%clk 0:00:16.7]} 42... Qcxf6 {[%clk 0:00:34.6]} 0-1

[Event "*** Qualifier 1: Titled Tuesday 3|2 Blitz"]
[Site "Chess.com"]
[Date "2017.04.04"]
[Round "7"]
[White "yian123"]
[Black "Kacparov"]
[Result "1-0"]
[WhiteElo "2415"]
[BlackElo "2583"]
[TimeControl "180+2"]
[EndTime "14:40:06 PDT"]
[Termination "yian123 won by resignation"]

1. e4 {[%clk 0:03:02]} 1... c5 {[%clk 0:03:00.6]} 2. Nf3 {[%clk 0:03:01.3]} 2...
e6 {[%clk 0:02:58.9]} 3. d4 {[%clk 0:03:01.5]} 3... cxd4 {[%clk 0:03:00.8]} 4.
Nxd4 {[%clk 0:03:03.4]} 4... Nc6 {[%clk 0:03:01.9]} 5. Nc3 {[%clk 0:02:58.9]}
5... Qc7 {[%clk 0:02:59.8]} 6. Be3 {[%clk 0:02:51.6]} 6... a6 {[%clk 0:03:00.6]}
7. Qf3 {[%clk 0:02:37.1]} 7... Nf6 {[%clk 0:03:00.3]} 8. O-O-O {[%clk
0:02:24.7]} 8... Ne5 {[%clk 0:02:58.9]} 9. Qg3 {[%clk 0:02:25]} 9... h5 {[%clk
0:02:59.8]} 10. Bg5 {[%clk 0:02:17.2]} 10... d6 {[%clk 0:02:39.4]} 11. f4 {[%clk
0:02:11.7]} 11... Ned7 {[%clk 0:02:35.9]} 12. Be2 {[%clk 0:02:03.9]} 12... b5
{[%clk 0:02:33.7]} 13. Bf3 {[%clk 0:02:04.8]} 13... Bb7 {[%clk 0:02:30.5]} 14.
Rhe1 {[%clk 0:01:55.8]} 14... e5 {[%clk 0:01:49.2]} 15. Nf5 {[%clk 0:01:50.3]}
15... g6 {[%clk 0:01:48.1]} 16. Ne3 {[%clk 0:01:46.2]} 16... Bg7 {[%clk
0:01:44.2]} 17. f5 {[%clk 0:01:41.5]} 17... b4 {[%clk 0:01:35.9]} 18. Ncd5
{[%clk 0:01:36]} 18... Bxd5 {[%clk 0:01:35.9]} 19. Nxd5 {[%clk 0:01:37.9]} 19...
Nxd5 {[%clk 0:01:27.7]} 20. Rxd5 {[%clk 0:01:39.8]} 20... Rc8 {[%clk 0:01:27.2]}
21. Re2 {[%clk 0:01:36.1]} 21... f6 {[%clk 0:01:16.4]} 22. Be3 {[%clk
0:01:17.2]} 22... g5 {[%clk 0:01:17.5]} 23. Red2 {[%clk 0:01:17.6]} 23... Bf8
{[%clk 0:01:17.9]} 24. Be2 {[%clk 0:01:07.7]} 24... Qc6 {[%clk 0:01:16.1]} 25.
Qh3 {[%clk 0:01:01.1]} 25... h4 {[%clk 0:01:16.1]} 26. Kb1 {[%clk 0:00:58.1]}
26... Be7 {[%clk 0:01:17.4]} 27. Qf3 {[%clk 0:00:56.3]} 27... Kf7 {[%clk
0:01:18.2]} 28. Qf1 {[%clk 0:00:53]} 28... Ra8 {[%clk 0:01:17.9]} 29. Bc4 {[%clk
0:00:52.7]} 29... Kg7 {[%clk 0:01:18.7]} 30. b3 {[%clk 0:00:49.4]} 30... Nb6
{[%clk 0:01:18.7]} 31. Bxb6 {[%clk 0:00:46.8]} 31... Qxb6 {[%clk 0:01:20.6]} 32.
Qf2 {[%clk 0:00:45.7]} 32... Qc7 {[%clk 0:01:15.6]} 33. Qe2 {[%clk 0:00:36.5]}
33... a5 {[%clk 0:01:16.1]} 34. Rb5 {[%clk 0:00:36.7]} 34... Ra7 {[%clk
0:01:15.3]} 35. Qd3 {[%clk 0:00:33.6]} 35... Rf8 {[%clk 0:01:04.6]} 36. Qe2
{[%clk 0:00:30.7]} 36... Kh6 {[%clk 0:01:04.6]} 37. g3 {[%clk 0:00:30.3]} 37...
hxg3 {[%clk 0:01:00.1]} 38. hxg3 {[%clk 0:00:32.2]} 38... Kg7 {[%clk 0:01:01.5]}
39. Qh5 {[%clk 0:00:32.7]} 1-0

[Event "*** Qualifier 1: Titled Tuesday 3|2 Blitz"]
[Site "Chess.com"]
[Date "2017.04.04"]
[Round "7"]
[White "FLchessplayer"]
[Black "Bengalas"]
[Result "0-1"]
[WhiteElo "2042"]
[BlackElo "2387"]
[TimeControl "180+2"]
[EndTime "14:40:08 PDT"]
[Termination "Bengalas won on time"]

1. Nf3 {[%clk 0:02:58.2]} 1... c5 {[%clk 0:03:00]} 2. g3 {[%clk 0:02:58.7]} 2...
Nc6 {[%clk 0:03:00.4]} 3. Bg2 {[%clk 0:02:29]} 3... g6 {[%clk 0:03:00.5]} 4. O-O
{[%clk 0:02:30.1]} 4... Bg7 {[%clk 0:03:01.4]} 5. d3 {[%clk 0:02:31.5]} 5... d6
{[%clk 0:03:01.1]} 6. c3 {[%clk 0:02:32.7]} 6... e5 {[%clk 0:03:01.4]} 7. Qc2
{[%clk 0:02:33.8]} 7... Nge7 {[%clk 0:03:01.6]} 8. a4 {[%clk 0:02:33.2]} 8...
O-O {[%clk 0:03:02]} 9. h3 {[%clk 0:02:33.8]} 9... h6 {[%clk 0:02:59.5]} 10.
Nbd2 {[%clk 0:02:34.4]} 10... Be6 {[%clk 0:02:59.8]} 11. Ne4 {[%clk 0:02:30]}
11... f5 {[%clk 0:02:58.7]} 12. Ned2 {[%clk 0:02:27.3]} 12... g5 {[%clk
0:02:53.7]} 13. Re1 {[%clk 0:02:22.4]} 13... Qd7 {[%clk 0:02:48]} 14. Kh2 {[%clk
0:02:21.8]} 14... Ng6 {[%clk 0:02:42.3]} 15. Nf1 {[%clk 0:02:21.9]} 15... Kh7
{[%clk 0:02:20.5]} 16. c4 {[%clk 0:02:14]} 16... g4 {[%clk 0:02:11]} 17. Ng1
{[%clk 0:02:12.4]} 17... h5 {[%clk 0:02:07.9]} 18. e3 {[%clk 0:01:55.3]} 18...
Nb4 {[%clk 0:01:55.1]} 19. Qb3 {[%clk 0:01:52.5]} 19... d5 {[%clk 0:01:34.9]}
20. a5 {[%clk 0:01:50.1]} 20... dxc4 {[%clk 0:01:27]} 21. dxc4 {[%clk
0:01:50.4]} 21... Nd3 {[%clk 0:01:28]} 22. Rd1 {[%clk 0:01:44.5]} 22... e4
{[%clk 0:01:28.9]} 23. Ne2 {[%clk 0:01:35.1]} 23... Nge5 {[%clk 0:01:24.1]} 24.
Ra4 {[%clk 0:01:24.3]} 24... Rfd8 {[%clk 0:01:10.2]} 25. Kg1 {[%clk 0:01:01.7]}
25... Rab8 {[%clk 0:00:55.3]} 26. h4 {[%clk 0:00:58.6]} 26... Bf7 {[%clk
0:00:54.7]} 27. Nf4 {[%clk 0:00:57.3]} 27... b5 {[%clk 0:00:46.5]} 28. axb6
{[%clk 0:00:56.4]} 28... axb6 {[%clk 0:00:47.7]} 29. Qc2 {[%clk 0:00:49.2]}
29... Bh6 {[%clk 0:00:36.5]} 30. Nd2 {[%clk 0:00:46.7]} 30... Nxc1 {[%clk
0:00:31.2]} 31. Qxc1 {[%clk 0:00:41.7]} 31... Bxf4 {[%clk 0:00:30.7]} 32. exf4
{[%clk 0:00:40.4]} 32... Qxa4 {[%clk 0:00:29.5]} 33. fxe5 {[%clk 0:00:37.6]}
33... Qe8 {[%clk 0:00:27.3]} 34. Nf1 {[%clk 0:00:30.6]} 34... Qxe5 {[%clk
0:00:27.6]} 35. Re1 {[%clk 0:00:30.9]} 35... Rd4 {[%clk 0:00:27]} 36. b3 {[%clk
0:00:08.3]} 36... Rbd8 {[%clk 0:00:25.7]} 0-1

[Event "*** Qualifier 1: Titled Tuesday 3|2 Blitz"]
[Site "Chess.com"]
[Date "2017.04.04"]
[Round "7"]
[White "FearNoEvil12"]
[Black "dhanushbharadwaj"]
[Result "0-1"]
[WhiteElo "2099"]
[BlackElo "2424"]
[TimeControl "180+2"]
[EndTime "14:40:18 PDT"]
[Termination "dhanushbharadwaj won by resignation"]

1. c4 {[%clk 0:03:02]} 1... g6 {[%clk 0:03:00.2]} 2. Nc3 {[%clk 0:03:02.7]} 2...
Bg7 {[%clk 0:03:00.6]} 3. e4 {[%clk 0:03:04.2]} 3... d6 {[%clk 0:03:01.3]} 4. d4
{[%clk 0:03:05.6]} 4... Nf6 {[%clk 0:03:02.6]} 5. Be2 {[%clk 0:03:07]} 5... O-O
{[%clk 0:03:02.6]} 6. f4 {[%clk 0:03:08.5]} 6... c5 {[%clk 0:03:02]} 7. Nf3
{[%clk 0:03:10]} 7... e6 {[%clk 0:03:03.5]} 8. e5 {[%clk 0:03:02.6]} 8... dxe5
{[%clk 0:03:01.7]} 9. dxe5 {[%clk 0:03:03.7]} 9... Nfd7 {[%clk 0:03:00.1]} 10.
O-O {[%clk 0:02:59.5]} 10... Nc6 {[%clk 0:03:01.4]} 11. Be3 {[%clk 0:02:59.5]}
11... a6 {[%clk 0:03:01.2]} 12. a4 {[%clk 0:02:59.2]} 12... Qc7 {[%clk
0:03:01.8]} 13. Ne4 {[%clk 0:02:57.2]} 13... b6 {[%clk 0:03:02.5]} 14. Qd6
{[%clk 0:02:51]} 14... Qxd6 {[%clk 0:02:58.5]} 15. Nxd6 {[%clk 0:02:51.2]} 15...
f6 {[%clk 0:02:57.2]} 16. exf6 {[%clk 0:02:47.8]} 16... Bxf6 {[%clk 0:02:59.1]}
17. Rad1 {[%clk 0:02:44.4]} 17... Nd4 {[%clk 0:02:50.5]} 18. Nxd4 {[%clk
0:02:36.9]} 18... cxd4 {[%clk 0:02:51.1]} 19. Bxd4 {[%clk 0:02:38.1]} 19...
Bxd4+ {[%clk 0:02:41.8]} 20. Rxd4 {[%clk 0:02:38.4]} 20... Nc5 {[%clk
0:02:43.3]} 21. Bd1 {[%clk 0:02:25]} 21... Bd7 {[%clk 0:02:35.5]} 22. b4 {[%clk
0:02:01.9]} 22... Nxa4 {[%clk 0:02:34.8]} 23. Ne4 {[%clk 0:02:02.2]} 23... Bc6
{[%clk 0:02:34.5]} 24. Ng5 {[%clk 0:01:59.9]} 24... b5 {[%clk 0:02:20.1]} 25.
Rd6 {[%clk 0:01:52.4]} 25... Rac8 {[%clk 0:02:16.6]} 26. c5 {[%clk 0:01:51.5]}
26... Nc3 {[%clk 0:01:51.3]} 27. Bb3 {[%clk 0:01:47]} 27... Bd5 {[%clk
0:01:46.2]} 28. Bxd5 {[%clk 0:01:43]} 28... exd5 {[%clk 0:01:46.8]} 29. Rxa6
{[%clk 0:01:43.1]} 29... d4 {[%clk 0:01:42.1]} 30. Ne6 {[%clk 0:01:38.1]} 30...
Rf6 {[%clk 0:01:40]} 31. Rd6 {[%clk 0:01:35.7]} 31... d3 {[%clk 0:01:17.5]} 32.
Rf3 {[%clk 0:01:15.1]} 32... Rxe6 {[%clk 0:00:53.8]} 33. Rfxd3 {[%clk
0:00:46.9]} 33... Ne2+ {[%clk 0:00:51.4]} 34. Kf2 {[%clk 0:00:47.2]} 34... Nxf4
{[%clk 0:00:52.7]} 35. R3d4 {[%clk 0:00:43.9]} 35... Rxd6 {[%clk 0:00:50.9]} 36.
Rxd6 {[%clk 0:00:39.5]} 36... Kf7 {[%clk 0:00:51.7]} 37. Rb6 {[%clk 0:00:39.4]}
37... Nd3+ {[%clk 0:00:51.4]} 38. Ke3 {[%clk 0:00:40]} 38... Nxb4 {[%clk
0:00:53]} 39. Rxb5 {[%clk 0:00:40.5]} 39... Nd5+ {[%clk 0:00:53.8]} 40. Kf3
{[%clk 0:00:40]} 40... Ne7 {[%clk 0:00:55.1]} 41. h4 {[%clk 0:00:39]} 41... Rc6
{[%clk 0:00:54.9]} 42. g4 {[%clk 0:00:38.9]} 42... Ke6 {[%clk 0:00:55.5]} 43.
Kf4 {[%clk 0:00:39.4]} 43... h6 {[%clk 0:00:55.9]} 44. Rb6 {[%clk 0:00:34.6]}
44... Rxb6 {[%clk 0:00:55.3]} 45. cxb6 {[%clk 0:00:35.3]} 45... Nd5+ {[%clk
0:00:56.9]} 46. Ke4 {[%clk 0:00:36]} 46... Nxb6 {[%clk 0:00:58.5]} 47. Kd4
{[%clk 0:00:35.6]} 47... Nd5 {[%clk 0:00:56.8]} 48. Ke4 {[%clk 0:00:35.8]} 48...
Ne7 {[%clk 0:00:57.1]} 49. Kd4 {[%clk 0:00:32.9]} 49... Kf6 {[%clk 0:00:57.6]}
50. Ke4 {[%clk 0:00:33.1]} 50... Nc6 {[%clk 0:00:58.4]} 51. Kf4 {[%clk
0:00:32.4]} 51... Ne5 {[%clk 0:00:58.1]} 52. g5+ {[%clk 0:00:32.8]} 52... hxg5+
{[%clk 0:00:58.8]} 53. hxg5+ {[%clk 0:00:34]} 53... Ke6 {[%clk 0:01:00.4]} 54.
Ke4 {[%clk 0:00:34.9]} 54... Nf7 {[%clk 0:01:01.2]} 55. Kf4 {[%clk 0:00:35.6]}
55... Kd5 {[%clk 0:01:02]} 56. Kg4 {[%clk 0:00:35.8]} 56... Ke5 {[%clk
0:01:03.6]} 57. Kh4 {[%clk 0:00:36.3]} 57... Kf5 {[%clk 0:01:05.2]} 0-1

[Event "*** Qualifier 1: Titled Tuesday 3|2 Blitz"]
[Site "Chess.com"]
[Date "2017.04.04"]
[Round "7"]
[White "Goala"]
[Black "Th3ChessViking"]
[Result "1-0"]
[WhiteElo "2294"]
[BlackElo "2334"]
[TimeControl "180+2"]
[EndTime "14:40:39 PDT"]
[Termination "Goala won on time"]

1. d4 {[%clk 0:03:02]} 1... Nf6 {[%clk 0:01:38.3]} 2. c4 {[%clk 0:03:02.6]} 2...
c5 {[%clk 0:01:32.2]} 3. d5 {[%clk 0:03:03.3]} 3... e5 {[%clk 0:01:33.6]} 4. Nc3
{[%clk 0:03:03.6]} 4... d6 {[%clk 0:01:35.1]} 5. e4 {[%clk 0:03:04.6]} 5... Nbd7
{[%clk 0:01:37]} 6. Be2 {[%clk 0:03:03.9]} 6... Be7 {[%clk 0:01:37.8]} 7. Nf3
{[%clk 0:03:05.2]} 7... O-O {[%clk 0:01:39.3]} 8. O-O {[%clk 0:03:06.8]} 8... a6
{[%clk 0:01:40.5]} 9. Ne1 {[%clk 0:03:07.2]} 9... Ne8 {[%clk 0:01:41.8]} 10. g3
{[%clk 0:03:07.5]} 10... Rb8 {[%clk 0:01:40.9]} 11. f4 {[%clk 0:03:05.1]} 11...
exf4 {[%clk 0:01:42.1]} 12. gxf4 {[%clk 0:03:07]} 12... g6 {[%clk 0:01:41.3]}
13. Bd3 {[%clk 0:02:47.4]} 13... Bf6 {[%clk 0:01:38.3]} 14. Nf3 {[%clk
0:02:45.6]} 14... Bg7 {[%clk 0:01:37.7]} 15. Re1 {[%clk 0:02:45]} 15... b5
{[%clk 0:00:33.4]} 16. e5 {[%clk 0:02:42.2]} 16... dxe5 {[%clk 0:00:18.7]} 17.
fxe5 {[%clk 0:02:41.8]} 17... Nb6 {[%clk 0:00:18.1]} 18. Be3 {[%clk 0:02:07.1]}
18... bxc4 {[%clk 0:00:07.6]} 19. Be4 {[%clk 0:02:05.5]} 19... Bg4 {[%clk
0:00:07.6]} 20. Bxc5 {[%clk 0:02:01.1]} 20... Bxe5 {[%clk 0:00:08.3]} 21. Bxf8
{[%clk 0:01:57.9]} 21... Kxf8 {[%clk 0:00:10.2]} 22. Kh1 {[%clk 0:01:44]} 22...
Nd6 {[%clk 0:00:07.6]} 23. Bc2 {[%clk 0:01:17.3]} 23... Bxf3+ {[%clk 0:00:06.8]}
24. Qxf3 {[%clk 0:01:18]} 24... Nd7 {[%clk 0:00:08.7]} 25. Rab1 {[%clk
0:00:58.5]} 25... Qh4 {[%clk 0:00:08.2]} 26. Re2 {[%clk 0:00:53.7]} 26... Kg7
{[%clk 0:00:05.4]} 27. Qf2 {[%clk 0:00:49.1]} 27... Qxf2 {[%clk 0:00:05.5]} 28.
Rxf2 {[%clk 0:00:51]} 28... f5 {[%clk 0:00:06.4]} 29. Re2 {[%clk 0:00:47.2]}
29... Kf6 {[%clk 0:00:07.5]} 30. Ree1 {[%clk 0:00:44]} 30... Rb6 {[%clk
0:00:07.5]} 31. Ba4 {[%clk 0:00:43.9]} 31... Nc5 {[%clk 0:00:08]} 32. Bc2 {[%clk
0:00:42]} 32... Rxb2 {[%clk 0:00:02]} 33. Rxb2 {[%clk 0:00:37.2]} 33... Bxc3
{[%clk 0:00:03.5]} 34. Rbb1 {[%clk 0:00:38.9]} 34... Bxe1 {[%clk 0:00:03.9]} 35.
Rxe1 {[%clk 0:00:40.8]} 35... Nce4 {[%clk 0:00:03.6]} 36. Rb1 {[%clk 0:00:38.1]}
36... Ke5 {[%clk 0:00:04.2]} 37. Rb6 {[%clk 0:00:37.9]} 37... Kxd5 {[%clk
0:00:05.5]} 38. Rxa6 {[%clk 0:00:38.1]} 38... c3 {[%clk 0:00:06.8]} 39. Ra7
{[%clk 0:00:38]} 39... Nc4 {[%clk 0:00:03.9]} 40. Rc7 {[%clk 0:00:29.4]} 1-0